fUST/lending_fUST_20250725
["ID","MTS","AMOUNT","RATE_DAILY","PERIOD"]
[374652923,1753401053698,-460.0,0.000192,2]
[374652924,1753401053708,-460.0,0.000192,2]
[374652925,1753401053717,-460.0,0.000192,2]
[374652926,1753401053726,-1091.91,0.000192,2]
[374652927,1753401053736,-1116.56,0.000192,2]
[374652928,1753401053746,-500.0,0.0001921,2]
[374652929,1753401053755,-250.0,0.00019216,2]
[374652930,1753401053765,-151.0,0.00019221,2]
[374652931,1753401053774,-6897.2610702,0.00019234,2]
[374652932,1753401053784,-508.0,0.00019257,2]
[374652933,1753401053794,-1074.0,0.00019298,2]
[374652934,1753401053804,-151.0,0.00019298,2]
[374652935,1753401053814,-151.0,0.00019298,2]
[374652936,1753401053823,-151.0,0.00019298,2]
[374652937,1753401053833,-151.0,0.00019298,2]
[374652938,1753401053843,-151.0,0.00019298,2]
[374652939,1753401053853,-151.0,0.00019298,2]
[374652940,1753401053862,-981.0,0.00019298,2]
[374652941,1753401053872,-500.0,0.00019298,2]
[374652942,1753401053882,-151.0,0.00019298,2]
[374652943,1753401053892,-500.0,0.00019298,2]
[374652944,1753401053903,-460.0,0.00019298,2]
[374652945,1753401053912,-460.0,0.00019298,2]
[374652946,1753401053922,-460.0,0.00019298,2]
[374652947,1753401053933,-460.0,0.00019298,2]
[374652948,1753401053942,-460.0,0.00019298,2]
[374652949,1753401053952,-460.0,0.00019298,2]
[374652950,1753401053962,-460.0,0.00019298,2]
[374652951,1753401053972,-460.0,0.00019298,2]
[374652952,1753401053982,-460.0,0.00019298,2]
[374652953,1753401053992,-460.0,0.00019298,2]
[374652954,1753401054002,-460.0,0.00019298,2]
[374652955,1753401054012,-460.0,0.00019298,2]
[374652956,1753401054022,-672.72,0.00019298,2]
[374652957,1753401054031,-467.827508,0.00019298,2]
[374652958,1753401054041,-467.827508,0.00019298,2]
[374652959,1753401054051,-460.0,0.00019298,2]
[374652960,1753401054061,-270.119134,0.00019298,2]
[374652961,1753401054071,-270.119134,0.00019298,2]
[374652962,1753401054081,-460.0,0.00019298,2]
[374652963,1753401054090,-460.0,0.00019298,2]
[374652964,1753401054099,-517.221489,0.00019298,2]
[374652965,1753401054109,-517.221489,0.00019298,2]
[374652966,1753401054118,-460.0,0.00019299,2]
[374652967,1753401054129,-314.93420197,0.00019299,2]
[374652968,1753401054139,-151.0,0.000193,2]
[374652969,1753401054150,-358.30941,0.000193,2]
[374652970,1753401054160,-460.0,0.000193,2]
[374652971,1753401054169,-460.0,0.000193,2]
[374652972,1753401054179,-460.0,0.000193,2]
[374652973,1753401054188,-460.0,0.000193,2]
[374652974,1753401054199,-460.0,0.000193,2]
[374652975,1753401054210,-460.2,0.000193,2]
[374652976,1753401054219,-151.0,0.000193,2]
[374652977,1753401054229,-188.465792,0.000193,2]
[374652978,1753401054239,-151.0,0.000193,2]
[374652979,1753401054248,-217.669127,0.000193,2]
[374652980,1753401054258,-217.669127,0.000193,2]
[374652981,1753401054267,-231.456694,0.000193,2]
[374652982,1753401054277,-231.456694,0.000193,2]
[374652983,1753401054286,-227.064974,0.000193,2]
[374652984,1753401054295,-227.064974,0.000193,2]
[374652985,1753401054305,-151.0,0.00019329,2]
[374652986,1753401054314,-151.0,0.00019329,2]
[374652987,1753401054324,-151.0,0.00019329,2]
[374652988,1753401054333,-151.0,0.00019329,2]
[374652989,1753401054343,-151.0,0.00019329,2]
[374652990,1753401054353,-100000.0,0.00019329,2]
[374652991,1753401054363,-526.24749348,0.00019341,2]
[374652992,1753401054372,-160.0,0.00019341,2]
[374652993,1753401054382,-12624.810388,0.00019341,2]
[374652994,1753401054391,-231.16387093,0.00019341,2]
[374652995,1753401054402,-476.79463412,0.00019341,2]
[374652996,1753401054411,-214.7213231,0.00019341,2]
[374652997,1753401054422,-160.0,0.00019341,2]
[374652998,1753401054431,-160.0,0.00019341,2]
[374652999,1753401054443,-840.23756827,0.00019341,2]
[374653000,1753401054453,-160.0,0.00019341,2]
[374653001,1753401054463,-1524.73887318,0.00019343,2]
[374653002,1753401054473,-460.0,0.00019365,2]
[374653003,1753401054483,-460.0,0.00019365,2]
[374653004,1753401054493,-590.39,0.00019365,2]
[374653005,1753401054503,-460.0,0.00019365,2]
[374653006,1753401054513,-460.0,0.00019365,2]
[374653007,1753401054522,-702.6,0.00019365,2]
[374653008,1753401054533,-2406.45,0.00019365,2]
[374653009,1753401054542,-478.79,0.00019365,2]
[374653010,1753401054551,-460.0,0.00019365,2]
[374653011,1753401054560,-745.75,0.00019365,2]
[374653012,1753401054570,-460.0,0.00019367,2]
[374653013,1753401054579,-707.67,0.00019367,2]
[374653014,1753401054588,-460.0,0.00019367,2]
[374653015,1753401054597,-7096.14,0.00019367,2]
[374653016,1753401054607,-460.0,0.00019367,2]
[374653017,1753401054616,-3528.52,0.00019367,2]
[374653018,1753401054626,-460.0,0.00019367,2]
[374653019,1753401054635,-460.0,0.00019367,2]
[374653020,1753401054645,-460.0,0.00019367,2]
[374653021,1753401054655,-997.71,0.00019367,2]
[374653022,1753401054664,-460.0,0.00019367,2]
[374653023,1753401054674,-810.51,0.00019367,2]
[374653024,1753401054684,-460.0,0.00019367,2]
[374653025,1753401054693,-3531.67,0.00019367,2]
[374653026,1753401054702,-3121.86,0.00019367,2]
[374653027,1753401054712,-875.44,0.00019367,2]
[374653028,1753401054721,-460.0,0.00019367,2]
[374653029,1753401054731,-2551.42,0.00019367,2]
[374653030,1753401054740,-1053.69,0.00019367,2]
[374653031,1753401054750,-460.0,0.00019367,2]
[374653032,1753401054761,-460.0,0.00019368,2]
[374653033,1753401054843,-460.0,0.00019368,2]
[374653034,1753401054858,-460.0,0.00019368,2]
[374653035,1753401054868,-460.0,0.00019368,2]
[374653036,1753401054878,-460.0,0.00019369,2]
[374653037,1753401054888,-460.0,0.00019369,2]
[374653038,1753401054897,-460.0,0.00019369,2]
[374653039,1753401054907,-460.0,0.00019369,2]
[374653040,1753401054917,-460.0,0.00019369,2]
[374653041,1753401054927,-460.0,0.00019369,2]
[374653042,1753401054937,-776.37,0.00019369,2]
[374653043,1753401054946,-460.0,0.00019369,2]
[374653044,1753401054956,-619.26,0.00019369,2]
[374653045,1753401054965,-460.0,0.00019369,2]
[374653046,1753401054976,-460.0,0.00019369,2]
[374653047,1753401054986,-151.0,0.00019369,2]
[374653048,1753401054996,-986.71,0.00019369,2]
[374653049,1753401055006,-460.0,0.00019369,2]
[374653050,1753401055015,-649.44,0.00019369,2]
[374653051,1753401055025,-460.0,0.00019369,2]
[374653052,1753401055034,-911.22,0.00019369,2]
[374653053,1753401055044,-779.76,0.00019369,2]
[374653054,1753401055053,-1391.18,0.00019369,2]
[374653055,1753401055063,-238.77431108,0.00019369,2]
[374653056,1753401055072,-450.7462856,0.00019369,2]
[374653057,1753401055247,-9.2537144,0.00019369,2]
[374653058,1753401055257,-460.0,0.00019369,2]
[374653059,1753401055266,-787.16,0.00019369,2]
[374653060,1753401055276,-460.0,0.00019369,2]
[374653061,1753401055285,-2617.62,0.00019369,2]
[374653062,1753401055295,-460.0,0.00019369,2]
[374653063,1753401055304,-460.0,0.00019369,2]
[374653064,1753401055314,-460.0,0.00019369,2]
[374653065,1753401055324,-1095.41,0.00019369,2]
[374653066,1753401055333,-552.46,0.00019369,2]
[374653067,1753401055342,-460.0,0.00019369,2]
[374653068,1753401055352,-460.0,0.00019369,2]
[374653069,1753401055361,-465.25,0.00019369,2]
[374653070,1753401055371,-1183.67,0.00019369,2]
[374653071,1753401055380,-1440.29,0.00019369,2]
[374653072,1753401055389,-579.20765751,0.00019369,2]
[374653073,1753401055400,-738.66,0.00019369,2]
[374653074,1753401055410,-460.0,0.00019369,2]
[374653075,1753401055419,-460.0,0.00019369,2]
[374653076,1753401055429,-460.0,0.00019369,2]
[374653077,1753401055441,-460.0,0.00019369,2]
[374653078,1753401055451,-460.0,0.00019369,2]
[374653079,1753401055460,-460.0,0.00019369,2]
[374653080,1753401055470,-460.0,0.00019369,2]
[374653081,1753401055479,-460.0,0.00019369,2]
[374653082,1753401055489,-460.0,0.00019369,2]
[374653083,1753401055499,-503.11,0.00019369,2]
[374653084,1753401055509,-460.0,0.00019369,2]
[374653085,1753401055518,-738.2,0.00019369,2]
[374653086,1753401055528,-460.0,0.00019369,2]
[374653087,1753401055537,-532.71,0.00019369,2]
[374653088,1753401055547,-460.0,0.00019369,2]
[374653089,1753401055557,-460.0,0.00019372,2]
[374653090,1753401055567,-683.84,0.00019372,2]
[374653091,1753401055577,-460.0,0.00019372,2]
[374653092,1753401055587,-460.0,0.00019372,2]
[374653093,1753401055596,-460.0,0.00019372,2]
[374653094,1753401055606,-151.0,0.00019372,2]
[374653095,1753401055615,-201.625031,0.00019372,2]
[374653096,1753401055624,-177.705526,0.00019372,2]
[374653097,1753401055633,-467.827508,0.00019372,2]
[374653098,1753401055643,-467.827508,0.00019372,2]
[374653099,1753401055655,-460.0,0.00019372,2]
[374653100,1753401055665,-270.119134,0.00019372,2]
[374653101,1753401055675,-270.119134,0.00019372,2]
[374653102,1753401055685,-1556.96,0.00019372,2]
[374653103,1753401055695,-1197.85,0.00019372,2]
[374653104,1753401055704,-517.5,0.00019372,2]
[374653105,1753401055714,-460.0,0.00019372,2]
[374653106,1753401055723,-554.23,0.00019372,2]
[374653107,1753401055733,-517.221489,0.00019372,2]
[374653108,1753401055742,-517.221489,0.00019372,2]
[374653109,1753401055752,-976.57,0.00019372,2]
[374653110,1753401055761,-823.75,0.00019372,2]
[374653111,1753401055771,-1147.02,0.00019372,2]
[374653112,1753401055780,-577.94,0.00019372,2]
[374653113,1753401055789,-1434.4,0.00019372,2]
[374653114,1753401055798,-6244.15,0.00019372,2]
[374653115,1753401055808,-460.0,0.00019372,2]
[374653116,1753401055818,-151.0,0.000194,2]
[374653117,1753401055827,-295.215646,0.00019421,2]
[374653118,1753401055837,-151.0,0.00019421,2]
[374653119,1753401055847,-151.0,0.00019421,2]
[374653120,1753401055856,-429.7456075,0.00019425,2]
[374653121,1753401055866,-859.491215,0.00019425,2]
[374653122,1753401055876,-429.7456075,0.00019425,2]
[374653123,1753401055885,-429.7456075,0.00019425,2]
[374653124,1753401055895,-429.7456075,0.00019425,2]
[374653125,1753401055907,-429.7456075,0.00019425,2]
[374653126,1753401055917,-460.0,0.00019471,2]
[374653127,1753401055927,-460.0,0.00019471,2]
[374653128,1753401055937,-460.0,0.00019471,2]
[374653129,1753401055947,-460.0,0.00019471,2]
[374653130,1753401055958,-662.7,0.00019471,2]
[374653131,1753401055968,-460.0,0.00019471,2]
[374653132,1753401055978,-460.0,0.00019471,2]
[374653133,1753401055988,-460.0,0.00019471,2]
[374653134,1753401055998,-460.0,0.00019471,2]
[374653135,1753401056008,-460.0,0.00019471,2]
[374653136,1753401056019,-460.0,0.00019471,2]
[374653137,1753401056117,-737.78,0.00019471,2]
[374653138,1753401056129,-699.99,0.00019471,2]
[374653139,1753401056140,-460.0,0.00019471,2]
[374653140,1753401056151,-535.72970882,0.00019471,2]
[374653141,1753401056161,-308.50951655,0.00019471,2]
[374653142,1753401056171,-934.84,0.00019471,2]
[374653143,1753401056181,-460.0,0.00019471,2]
[374653144,1753401056191,-463.46964991,0.00019471,2]
[374653145,1753401056202,-1052.61,0.00019471,2]
[374653146,1753401056212,-460.0,0.00019471,2]
[374653147,1753401056223,-467.13,0.00019471,2]
[374653148,1753401056233,-460.0,0.00019471,2]
[374653149,1753401056244,-704.04,0.00019471,2]
[374653150,1753401056254,-743.92,0.00019471,2]
[374653151,1753401056264,-961.48,0.00019471,2]
[374653152,1753401056273,-460.0,0.00019471,2]
[374653153,1753401056283,-460.0,0.00019471,2]
[374653154,1753401056295,-151.0,0.00019471,2]
[374653155,1753401056306,-756.95,0.00019471,2]
[374653156,1753401056316,-460.0,0.00019471,2]
[374653157,1753401056326,-307.79716171,0.00019471,2]
[374653158,1753401056337,-460.0,0.00019471,2]
[374653159,1753401056347,-188.465792,0.00019471,2]
[374653160,1753401056357,-151.0,0.00019471,2]
[374653161,1753401056368,-1291.86,0.00019471,2]
[374653162,1753401056378,-460.0,0.00019471,2]
[374653163,1753401056389,-460.0,0.00019471,2]
[374653164,1753401056399,-460.0,0.00019471,2]
[374653165,1753401056409,-217.669127,0.00019471,2]
[374653166,1753401056418,-1267.48,0.00019471,2]
[374653167,1753401056428,-460.0,0.00019471,2]
[374653168,1753401056439,-217.669127,0.00019471,2]
[374653169,1753401056449,-460.0,0.00019471,2]
[374653170,1753401056459,-460.0,0.00019471,2]
[374653171,1753401056468,-460.0,0.00019471,2]
[374653172,1753401056479,-560.33,0.00019471,2]
[374653173,1753401056489,-460.0,0.00019471,2]
[374653174,1753401056499,-231.456694,0.00019471,2]
[374653175,1753401056509,-460.0,0.00019471,2]
[374653176,1753401056520,-231.456694,0.00019471,2]
[374653177,1753401056531,-463.64204059,0.00019471,2]
[374653178,1753401056541,-460.0,0.00019471,2]
[374653179,1753401056550,-460.0,0.00019471,2]
[374653180,1753401056559,-591.04,0.00019471,2]
[374653181,1753401056569,-184.0,0.00019471,2]
[374653182,1753401056579,-537.65,0.00019471,2]
[374653183,1753401056588,-572.48,0.00019471,2]
[374653184,1753401056598,-460.0,0.00019471,2]
[374653185,1753401056607,-227.064974,0.00019471,2]
[374653186,1753401056617,-227.064974,0.00019471,2]
[374653187,1753401056626,-483.29,0.00019471,2]
[374653188,1753401056635,-464.31744254,0.00019471,2]
[374653189,1753401056645,-1230.85,0.00019471,2]
[374653190,1753401056656,-1112.94,0.00019471,2]
[374653191,1753401056665,-460.0,0.00019471,2]
[374653192,1753401056675,-538.59,0.00019471,2]
[374653193,1753401056684,-202.86026692,0.00019471,2]
[374653194,1753401056693,-650.3,0.00019471,2]
[374653195,1753401056703,-460.0,0.00019471,2]
[374653196,1753401056712,-460.0,0.00019471,2]
[374653197,1753401056721,-460.0,0.00019471,2]
[374653198,1753401056731,-460.0,0.00019471,2]
[374653199,1753401056740,-460.0,0.00019471,2]
[374653200,1753401056750,-151.0,0.00019472,2]
[374653201,1753401056759,-1210.61,0.00019472,2]
[374653202,1753401056769,-3833.04,0.00019472,2]
[374653203,1753401056778,-3180.14,0.00019472,2]
[374653204,1753401056789,-460.0,0.00019472,2]
[374653205,1753401056799,-500.0,0.00019473,2]
[374653206,1753401056808,-460.0,0.00019473,2]
[374653207,1753401056818,-151.0,0.00019473,2]
[374653208,1753401056829,-151.0,0.00019473,2]
[374653209,1753401056838,-151.453999,0.00019473,2]
[374653210,1753401056848,-151.0,0.00019473,2]
[374653211,1753401056857,-151.0,0.00019473,2]
[374653212,1753401056867,-1840.34,0.00019473,2]
[374653213,1753401056876,-460.0,0.00019473,2]
[374653214,1753401056886,-542.68,0.00019473,2]
[374653215,1753401056895,-460.0,0.00019473,2]
[374653216,1753401056907,-460.0,0.00019473,2]
[374653217,1753401056917,-836.45,0.00019473,2]
[374653218,1753401056927,-460.0,0.00019473,2]
[374653219,1753401056936,-460.0,0.00019473,2]
[374653220,1753401056945,-460.0,0.00019473,2]
[374653221,1753401056955,-605.21,0.00019473,2]
[374653222,1753401056965,-460.0,0.00019473,2]
[374653223,1753401056974,-1607.54,0.00019473,2]
[374653224,1753401056984,-690.56,0.00019473,2]
[374653225,1753401056994,-2311.21,0.00019473,2]
[374653226,1753401057004,-460.0,0.00019473,2]
[374653227,1753401057014,-808.62,0.00019473,2]
[374653228,1753401057023,-460.0,0.00019473,2]
[374653229,1753401057032,-586.24,0.00019473,2]
[374653230,1753401057042,-510.83,0.00019473,2]
[374653231,1753401057052,-2348.62,0.00019473,2]
[374653232,1753401057061,-802.59,0.00019473,2]
[374653233,1753401057070,-1028.98,0.00019473,2]
[374653234,1753401057080,-587.76,0.00019473,2]
[374653235,1753401057090,-151.0,0.00019473,2]
[374653236,1753401057100,-460.0,0.00019473,2]
[374653237,1753401057109,-460.0,0.00019473,2]
[374653238,1753401057118,-3301.72,0.00019473,2]
[374653239,1753401057128,-494.9,0.00019473,2]
[374653240,1753401057137,-460.0,0.00019473,2]
[374653241,1753401057149,-189.162948,0.00019473,2]
[374653242,1753401057158,-460.0,0.00019473,2]
[374653243,1753401057168,-460.0,0.00019473,2]
[374653244,1753401057177,-3295.04,0.00019473,2]
[374653245,1753401057187,-460.0,0.00019473,2]
[374653246,1753401057197,-389.68021653,0.00019473,2]
[374653247,1753401057206,-174.67482996,0.00019473,2]
[374653248,1753401057215,-887.29,0.00019473,2]
[374653249,1753401057225,-2315.49,0.00019473,2]
[374653250,1753401057237,-460.0,0.00019473,2]
[374653251,1753401057247,-508.88953556,0.00019473,2]
[374653252,1753401057257,-151.0,0.00019473,2]
[374653253,1753401057267,-151.0,0.00019473,2]
[374653254,1753401057276,-460.0,0.00019473,2]
[374653255,1753401057286,-2762.88,0.00019473,2]
[374653256,1753401057296,-460.0,0.00019473,2]
[374653257,1753401057306,-460.0,0.00019474,2]
[374653258,1753401057316,-460.0,0.00019474,2]
[374653259,1753401057326,-716.83,0.00019474,2]
[374653260,1753401057336,-460.0,0.00019474,2]
[374653261,1753401057347,-151.0,0.00019474,2]
[374653262,1753401057357,-664.19,0.00019474,2]
[374653263,1753401057368,-755.41,0.00019474,2]
[374653264,1753401057378,-170.883882,0.00019474,2]
[374653265,1753401057387,-460.0,0.00019474,2]
[374653266,1753401057398,-151.0,0.00019474,7]
[374653267,1753401057408,-301.14829594,0.00019474,2]
[374653268,1753401057417,-460.0,0.00019474,2]
[374653269,1753401057499,-297.00262278,0.00019474,2]
[374653270,1753401057510,-460.0,0.00019474,2]
[374653271,1753401057520,-460.0,0.00019474,2]
[374653272,1753401057531,-460.0,0.00019474,2]
[374653273,1753401057540,-460.0,0.00019474,2]
[374653274,1753401057550,-460.0,0.00019474,2]
[374653275,1753401057559,-460.0,0.00019474,2]
[374653276,1753401057570,-460.0,0.00019474,2]
[374653277,1753401057581,-460.0,0.00019474,2]
[374653278,1753401057592,-460.0,0.00019474,2]
[374653279,1753401057602,-500.0,0.00019474,2]
[374653280,1753401057612,-495.91,0.00019474,2]
[374653281,1753401057621,-460.0,0.00019474,2]
[374653282,1753401057631,-460.0,0.00019474,2]
[374653283,1753401057640,-460.0,0.00019474,2]
[374653284,1753401057652,-808.56,0.00019474,2]
[374653285,1753401057662,-460.0,0.00019474,2]
[374653286,1753401057671,-460.0,0.00019474,2]
[374653287,1753401057681,-460.0,0.00019474,2]
[374653288,1753401057690,-1292.34243569,0.00019474,2]
[374653289,1753401057702,-460.0,0.00019474,2]
[374653290,1753401057713,-460.0,0.00019474,2]
[374653291,1753401057723,-460.0,0.00019474,2]
[374653292,1753401057732,-460.0,0.00019474,2]
[374653293,1753401057743,-460.0,0.00019474,2]
[374653294,1753401057754,-1091.91,0.00019474,2]
[374653295,1753401057765,-1116.56,0.00019474,2]
[374653296,1753401057775,-1000.0,0.00019521,2]
[374653297,1753401057786,-225.68932087,0.00019521,2]
[374653298,1753401057796,-437.56116194,0.00019521,2]
[374653299,1753401057807,-1000.0,0.00019521,2]
[374653300,1753401057817,-1000.0,0.00019521,2]
[374653301,1753401057826,-1000.0,0.00019521,2]
[374653302,1753401057836,-500.0,0.00019521,2]
[374653303,1753401057846,-1000.0,0.00019521,2]
[374653304,1753401057855,-2879.78568261,0.00019543,2]
[374653305,1753401057867,-151.0,0.00019546,2]
[374653306,1753401057878,-1074.0,0.00019572,2]
[374653307,1753401057887,-151.0,0.00019572,2]
[374653308,1753401057900,-151.0,0.00019572,2]
[374653309,1753401057910,-151.0,0.00019572,2]
[374653310,1753401057919,-151.0,0.00019572,2]
[374653311,1753401057928,-151.0,0.00019572,2]
[374653312,1753401057938,-151.0,0.00019572,2]
[374653313,1753401057948,-981.0,0.00019572,2]
[374653314,1753401057958,-500.0,0.00019572,2]
[374653315,1753401057967,-151.0,0.00019572,2]
[374653316,1753401057977,-637.12379564,0.00019572,2]
[374653317,1753401057987,-151.0,0.00019572,2]
[374653318,1753401057996,-151.0,0.00019572,2]
[374653319,1753401058006,-151.0,0.00019572,2]
[374653320,1753401058015,-460.0,0.00019572,2]
[374653321,1753401058024,-460.0,0.00019572,2]
[374653322,1753401058034,-460.0,0.00019572,2]
[374653323,1753401058044,-177.705526,0.00019572,2]
[374653324,1753401058053,-460.0,0.00019572,2]
[374653325,1753401058066,-460.0,0.00019572,2]
[374653326,1753401058076,-460.0,0.00019572,2]
[374653327,1753401058086,-460.0,0.00019572,2]
[374653328,1753401058095,-460.0,0.00019572,2]
[374653329,1753401058105,-460.0,0.00019572,2]
[374653330,1753401058114,-460.0,0.00019572,2]
[374653331,1753401058124,-460.0,0.00019572,2]
[374653332,1753401058133,-672.72,0.00019572,2]
[374653333,1753401058143,-460.0,0.00019572,2]
[374653334,1753401058155,-460.0,0.00019572,2]
[374653335,1753401058165,-460.0,0.00019572,2]
[374653336,1753401058175,-460.0,0.00019573,2]
[374653337,1753401058195,-467.827508,0.00019573,2]
[374653338,1753401058206,-467.827508,0.00019573,2]
[374653339,1753401058216,-270.119134,0.00019573,2]
[374653340,1753401058227,-270.119134,0.00019573,2]
[374653341,1753401058237,-517.221489,0.00019573,2]
[374653342,1753401058247,-517.221489,0.00019573,2]
[374653343,1753401058257,-460.0,0.00019574,2]
[374653344,1753401058267,-460.0,0.00019574,2]
[374653345,1753401058278,-460.0,0.00019574,2]
[374653346,1753401058288,-460.0,0.00019574,2]
[374653347,1753401058298,-460.0,0.00019574,2]
[374653348,1753401058308,-460.2,0.00019574,2]
[374653349,1753401058318,-806.531227,0.00019619,2]
[374653350,1753401058329,-508.0,0.00019637,2]
[374653351,1753401058339,-460.0,0.00019639,2]
[374653352,1753401058349,-460.0,0.00019639,2]
[374653353,1753401058359,-590.39,0.00019639,2]
[374653354,1753401058370,-460.0,0.00019639,2]
[374653355,1753401058380,-702.6,0.00019639,2]
[374653356,1753401058389,-2406.45,0.00019639,2]
[374653357,1753401058400,-478.79,0.00019639,2]
[374653358,1753401058410,-460.0,0.00019639,2]
[374653359,1753401058421,-745.75,0.00019639,2]
[374653360,1753401058431,-460.0,0.00019641,2]
[374653361,1753401058445,-707.67,0.00019641,2]
[374653362,1753401058455,-460.0,0.00019641,2]
[374653363,1753401058465,-7096.14,0.00019641,2]
[374653364,1753401058475,-3528.52,0.00019641,2]
[374653365,1753401058485,-460.0,0.00019641,2]
[374653366,1753401058495,-460.0,0.00019641,2]
[374653367,1753401058505,-460.0,0.00019641,2]
[374653368,1753401058516,-997.71,0.00019641,2]
[374653369,1753401058525,-460.0,0.00019641,2]
[374653370,1753401058535,-810.51,0.00019641,2]
[374653371,1753401058545,-460.0,0.00019641,2]
[374653372,1753401058555,-3531.67,0.00019641,2]
[374653373,1753401058565,-3121.86,0.00019641,2]
[374653374,1753401058575,-875.44,0.00019641,2]
[374653375,1753401058585,-460.0,0.00019641,2]
[374653376,1753401058596,-2551.42,0.00019641,2]
[374653377,1753401058607,-1053.69,0.00019641,2]
[374653378,1753401058617,-460.0,0.00019641,2]
[374653379,1753401058627,-460.0,0.00019642,2]
[374653380,1753401058636,-460.0,0.00019642,2]
[374653381,1753401058646,-460.0,0.00019642,2]
[374653382,1753401058656,-460.0,0.00019642,2]
[374653383,1753401058666,-1100.0,0.00019642,2]
[374653384,1753401058676,-460.0,0.00019643,2]
[374653385,1753401058685,-460.0,0.00019643,2]
[374653386,1753401058696,-460.0,0.00019643,2]
[374653387,1753401058706,-460.0,0.00019643,2]
[374653388,1753401058716,-460.0,0.00019643,2]
[374653389,1753401058725,-460.0,0.00019643,2]
[374653390,1753401058735,-776.37,0.00019643,2]
[374653391,1753401058859,-460.0,0.00019643,2]
[374653392,1753401058869,-619.26,0.00019643,2]
[374653393,1753401058878,-460.0,0.00019643,2]
[374653394,1753401058889,-460.0,0.00019643,2]
[374653395,1753401058899,-986.71,0.00019643,2]
[374653396,1753401058909,-460.0,0.00019643,2]
[374653397,1753401058918,-649.44,0.00019643,2]
[374653398,1753401058927,-460.0,0.00019643,2]
[374653399,1753401058937,-911.22,0.00019643,2]
[374653400,1753401058947,-779.76,0.00019643,2]
[374653401,1753401058957,-1391.18,0.00019643,2]
[374653402,1753401058967,-460.0,0.00019643,2]
[374653403,1753401058976,-460.0,0.00019643,2]
[374653404,1753401058985,-787.16,0.00019643,2]
[374653405,1753401058995,-460.0,0.00019643,2]
[374653406,1753401059004,-2617.62,0.00019643,2]
[374653407,1753401059014,-460.0,0.00019643,2]
[374653408,1753401059024,-460.0,0.00019643,2]
[374653409,1753401059034,-460.0,0.00019643,2]
[374653410,1753401059043,-1095.41,0.00019643,2]
[374653411,1753401059052,-552.46,0.00019643,2]
[374653412,1753401059062,-460.0,0.00019643,2]
[374653413,1753401059071,-465.25,0.00019643,2]
[374653414,1753401059081,-1183.67,0.00019643,2]
[374653415,1753401059091,-1440.29,0.00019643,2]
[374653416,1753401059100,-738.66,0.00019643,2]
[374653417,1753401059110,-460.0,0.00019643,2]
[374653418,1753401059119,-177.98277192,0.00019643,2]
[374653419,1753401059129,-460.0,0.00019643,2]
[374653420,1753401059139,-460.0,0.00019643,2]
[374653421,1753401059149,-460.0,0.00019643,2]
[374653422,1753401059159,-460.0,0.00019643,2]